fUST/lending_fUST_20250623
["ID","MTS","AMOUNT","RATE_DAILY","PERIOD"]
[367159507,1750679444740,-151.0,0.00021917,2]
[367159508,1750679444751,-151.0,0.00021917,2]
[367159509,1750679444761,-151.0,0.00021917,2]
[367159510,1750679444774,-151.0,0.00021917,2]
[367159511,1750679444784,-1206.9,0.00021917,2]
[367159512,1750679444794,-489.69,0.00021917,2]
[367159513,1750679444805,-585.33,0.00021917,2]
[367159514,1750679444815,-494.45,0.00021917,2]
[367159515,1750679444826,-460.0,0.00021917,2]
[367159516,1750679444835,-460.0,0.00021917,2]
[367159517,1750679445053,-460.0,0.00021917,2]
[367159518,1750679445064,-1491.15,0.00021917,2]
[367159519,1750679445075,-738.84,0.00021917,2]
[367159520,1750679445085,-461.03,0.00021917,2]
[367159521,1750679445095,-460.0,0.00021917,2]
[367159522,1750679445105,-460.0,0.00021917,2]
[367159523,1750679445115,-460.0,0.00021917,2]
[367159524,1750679445125,-3841.01,0.00021917,2]
[367159525,1750679445135,-598.43,0.00021917,2]
[367159526,1750679445145,-344.63608748,0.00021917,2]
[367159527,1750679445156,-460.0,0.00021917,2]
[367159528,1750679445166,-460.0,0.00021917,2]
[367159529,1750679445177,-151.0,0.00021917,2]
[367159530,1750679445187,-151.0,0.00021917,2]
[367159531,1750679445197,-460.0,0.00021917,2]
[367159532,1750679445207,-460.0,0.00021917,2]
[367159533,1750679445221,-500.0,0.00021917,2]
[367159534,1750679445231,-572.67,0.00021917,2]
[367159535,1750679445242,-1498.62,0.00021917,2]
[367159536,1750679445252,-460.0,0.00021917,2]
[367159537,1750679445262,-1277.24,0.00021917,2]
[367159538,1750679445272,-2339.52,0.00021917,2]
[367159539,1750679445282,-460.0,0.00021917,2]
[367159540,1750679445293,-528.94,0.00021917,2]
[367159541,1750679445304,-460.0,0.00021917,2]
[367159542,1750679445314,-936.05,0.00021917,2]
[367159543,1750679445324,-1779.86,0.00021917,2]
[367159544,1750679445334,-460.0,0.00021917,2]
[367159545,1750679445344,-1234.2,0.00021917,2]
[367159546,1750679445354,-460.0,0.00021917,2]
[367159547,1750679445363,-597.75,0.00021917,2]
[367159548,1750679445375,-464.16,0.00021917,2]
[367159549,1750679445384,-460.0,0.00021917,2]
[367159550,1750679445394,-460.0,0.00021917,2]
[367159551,1750679445404,-460.0,0.00021917,2]
[367159552,1750679445414,-460.0,0.00021917,2]
[367159553,1750679445423,-460.0,0.00021917,2]
[367159554,1750679445432,-460.0,0.00021917,2]
[367159555,1750679445442,-5222.06,0.00021917,2]
[367159556,1750679445453,-460.0,0.00021917,2]
[367159557,1750679445462,-5417.65,0.00021917,2]
[367159558,1750679445472,-1700.19,0.00021917,2]
[367159559,1750679445482,-460.0,0.00021917,2]
[367159560,1750679445491,-460.0,0.00021917,2]
[367159561,1750679445501,-708.05,0.00021917,2]
[367159562,1750679445511,-603.78,0.00021917,2]
[367159563,1750679445521,-460.61863843,0.00021917,2]
[367159564,1750679445531,-460.0,0.00021917,2]
[367159565,1750679445541,-153.164602,0.00021917,2]
[367159566,1750679445552,-460.0,0.00021917,2]
[367159567,1750679445563,-460.0,0.00021917,2]
[367159568,1750679445573,-500.0,0.00021917,2]
[367159569,1750679445582,-460.0,0.00021917,2]
[367159570,1750679445592,-917.03,0.00021917,2]
[367159571,1750679445602,-2471.71,0.00021917,2]
[367159572,1750679445611,-460.0,0.00021917,2]
[367159573,1750679445621,-7020.42,0.00021917,2]
[367159574,1750679445631,-5756.46,0.00021917,2]
[367159575,1750679445641,-460.0,0.00021917,2]
[367159576,1750679445651,-613.98,0.00021917,2]
[367159577,1750679445662,-460.0,0.00021917,2]
[367159578,1750679445672,-812.66,0.00021917,2]
[367159579,1750679445682,-460.0,0.00021917,2]
[367159580,1750679445691,-460.0,0.00021917,2]
[367159581,1750679445701,-460.0,0.00021917,2]
[367159582,1750679445710,-410.0,0.00021917,2]
[367159583,1750679445720,-460.0,0.00021917,2]
[367159584,1750679445731,-460.0,0.00021917,2]
[367159585,1750679445740,-320.0,0.00021917,2]
[367159586,1750679445750,-460.0,0.00021917,2]
[367159587,1750679445760,-460.0,0.00021917,2]
[367159588,1750679445774,-3659.38,0.00021917,2]
[367159589,1750679445784,-658.32,0.00021917,2]
[367159590,1750679445794,-460.0,0.00021917,2]
[367159591,1750679445805,-1647.54,0.00021917,2]
[367159592,1750679445815,-784.35,0.00021917,2]
[367159593,1750679445824,-460.0,0.00021917,2]
[367159594,1750679445834,-513.58,0.00021917,2]
[367159595,1750679445843,-534.48,0.00021917,2]
[367159596,1750679445853,-460.0,0.00021917,2]
[367159597,1750679445863,-777.59,0.00021917,2]
[367159598,1750679445872,-460.0,0.00021917,2]
[367159599,1750679445882,-460.0,0.00021917,2]
[367159600,1750679445891,-460.0,0.00021917,2]
[367159601,1750679445901,-1616.03,0.00021917,2]
[367159602,1750679445911,-460.0,0.00021917,2]
[367159603,1750679445921,-983.79,0.00021917,2]
[367159604,1750679445931,-926.18,0.00021917,2]
[367159605,1750679445940,-1477.14,0.00021917,2]
[367159606,1750679445950,-637.53,0.00021917,2]
[367159607,1750679445960,-460.0,0.00021917,2]
[367159608,1750679445968,-401.16366219,0.00021917,2]
[367159609,1750679445978,-460.0,0.00021917,2]
[367159610,1750679445987,-5597.06,0.00021917,2]
[367159611,1750679445997,-460.0,0.00021917,2]
[367159612,1750679446006,-460.0,0.00021917,2]
[367159613,1750679446016,-460.0,0.00021917,2]
[367159614,1750679446027,-200.0,0.00021917,10]
[367159615,1750679446037,-892.18,0.00021917,2]
[367159616,1750679446045,-646.98,0.00021917,2]
[367159617,1750679446057,-460.0,0.00021917,2]
[367159618,1750679446067,-200.0,0.00021917,10]
[367159619,1750679446076,-226.54280683,0.00021917,2]
[367159620,1750679446087,-200.0,0.00021917,10]
[367159621,1750679446096,-460.0,0.00021917,2]
[367159622,1750679446106,-200.0,0.00021917,10]
[367159623,1750679446115,-650.6,0.00021917,2]
[367159624,1750679446125,-200.0,0.00021917,10]
[367159625,1750679446135,-481.63,0.00021917,2]
[367159626,1750679446144,-460.0,0.00021917,2]
[367159627,1750679446154,-460.0,0.00021917,2]
[367159628,1750679446163,-200.0,0.00021917,10]
[367159629,1750679446173,-432.95503368,0.00021917,2]
[367159630,1750679446183,-460.0,0.00021917,2]
[367159631,1750679446192,-200.0,0.00021917,10]
[367159632,1750679446201,-1092.76,0.00021917,2]
[367159633,1750679446211,-460.0,0.00021917,2]
[367159634,1750679446221,-153.0,0.00021918,2]
[367159635,1750679446230,-153.0,0.00021918,2]
[367159636,1750679446240,-153.0,0.00021918,2]
[367159637,1750679446250,-153.0,0.00021918,2]
[367159638,1750679446259,-153.0,0.00021918,2]
[367159639,1750679446269,-153.0,0.00021918,2]
[367159640,1750679446278,-153.0,0.00021918,2]
[367159642,1750679446288,-153.0,0.00021918,2]
[367159644,1750679446298,-153.0,0.00021918,2]
[367159646,1750679446307,-153.0,0.00021918,2]
[367159648,1750679446317,-153.0,0.00021918,2]
[367159650,1750679446327,-153.0,0.00021918,2]
[367159652,1750679446336,-481.33963642,0.00021918,7]
[367159654,1750679446346,-150.0,0.00021918,2]
[367159656,1750679446355,-1481.24008579,0.00021947,2]
[367159658,1750679446365,-500.0,0.00021973,2]
[367159660,1750679446375,-500.0,0.00021973,2]
[367159662,1750679446385,-500.0,0.00021973,2]
[367159664,1750679446394,-500.0,0.00021973,2]
[367159666,1750679446403,-592.85541307,0.00021973,2]
[367159668,1750679446413,-500.0,0.00021973,2]
[367159670,1750679446421,-500.0,0.00021973,2]
[367159672,1750679446430,-500.0,0.00021973,2]
[367159674,1750679446439,-500.0,0.00021973,2]
[367159676,1750679446448,-500.0,0.00021973,2]
[367159677,1750679446457,-500.0,0.00021973,2]
[367159678,1750679446466,-500.0,0.00021973,2]
[367159679,1750679446475,-500.0,0.00021973,2]
[367159680,1750679446483,-500.0,0.00021973,2]
[367159681,1750679446492,-500.0,0.00021973,2]
[367159682,1750679446501,-500.0,0.00021973,2]
[367159683,1750679446510,-500.0,0.00021973,2]
[367159684,1750679446518,-500.0,0.00021973,2]
[367159685,1750679446527,-500.0,0.00021973,2]
[367159686,1750679446536,-503.79810707,0.00021973,2]
[367159687,1750679446546,-500.0,0.00021973,2]
[367159688,1750679446556,-607.53197589,0.00021973,2]
[367159689,1750679446565,-500.0,0.00021973,2]
[367159690,1750679446575,-448.09316403,0.00021973,2]
[367159691,1750679446584,-500.0,0.00021973,2]
[367159692,1750679446594,-500.0,0.00021973,2]
[367159693,1750679446603,-500.0,0.00021973,2]
[367159694,1750679446612,-6841.48,0.00022,7]
[367159695,1750679446621,-3178.57,0.00022,7]
[367159696,1750679446631,-2000.0,0.00022,4]
[367159697,1750679446640,-213.63163053,0.00022,7]
[367159698,1750679446649,-846.53928378,0.00022,7]
[367159700,1750679446659,-230.18214666,0.00022065,2]
[367159701,1750679446668,-425.08510397,0.00022065,2]
[367159702,1750679446677,-12553.69357174,0.00022065,2]
[367159703,1750679446686,-213.63163053,0.00022065,2]
[367159704,1750679446695,-160.0,0.00022065,2]
[367159705,1750679446704,-160.0,0.00022065,2]
[367159706,1750679446714,-846.53928378,0.00022065,2]
[367159707,1750679446723,-836.70095952,0.00022065,2]
[367159708,1750679446732,-160.0,0.00022065,2]
[367159709,1750679446741,-151.0,0.00022065,7]
[367159710,1750679446750,-151.0,0.00022065,7]
[367159711,1750679446759,-151.0,0.00022065,7]
[367159712,1750679446771,-160.0,0.00022065,2]
[367159713,1750679446780,-220.0,0.00022069,2]
[367159715,1750679446790,-267.0,0.0002207,2]
[367159716,1750679446799,-169.6086381,0.00022091,2]
[367159718,1750679446814,-98103.34,0.000221,2]
[367159720,1750679446823,-151.0,0.000221,7]
[367159722,1750679446832,-151.0,0.000221,7]
[367159724,1750679446843,-239.64445,0.000221,7]
[367159726,1750679446854,-233.508776,0.000221,7]
[367159728,1750679446864,-151.0,0.000221,7]
[367159731,1750679446874,-151.0,0.000221,7]
[367159733,1750679446884,-183.29251237,0.000221,7]
[367159735,1750679446893,-151.0,0.000221,7]
[367159737,1750679446903,-365.8891638,0.00022147,2]
[367159739,1750679446912,-250.0,0.00022173,2]
[367159741,1750679446921,-965.0,0.0002218,2]
[367159743,1750679446931,-654.0,0.0002218,2]
[367159745,1750679446940,-2161.0,0.0002218,2]
[367159746,1750679446949,-247.364,0.0002218,2]
[367159749,1750679446959,-658.01,0.00022191,2]
[367159751,1750679446968,-460.0,0.00022191,2]
[367159753,1750679446978,-623.23,0.00022191,2]
[367159755,1750679446987,-174.95871843,0.00022191,2]
[367159756,1750679446996,-245.14961304,0.00022191,2]
[367159759,1750679447006,-460.0,0.00022191,2]
[367159761,1750679447015,-391.0509089,0.00022191,2]
[367159762,1750679447024,-563.15,0.00022191,2]
[367159765,1750679447034,-460.0,0.00022191,2]
[367159767,1750679447044,-460.0,0.00022191,2]
[367159769,1750679447053,-460.0,0.00022191,2]
[367159771,1750679447063,-460.0,0.00022191,2]
[367159773,1750679447072,-460.0,0.00022191,2]
[367159775,1750679447082,-460.0,0.00022191,2]
[367159777,1750679447091,-673.82,0.00022191,2]
[367159779,1750679447101,-383.24721018,0.00022191,2]
[367159781,1750679447110,-460.0,0.00022191,2]
[367159792,1750679447207,-460.0,0.00022191,2]
[367159794,1750679447216,-460.0,0.00022191,2]
[367159796,1750679447226,-460.0,0.00022191,2]
[367159798,1750679447235,-460.0,0.00022191,2]
[367159800,1750679447244,-460.0,0.00022191,2]
[367159802,1750679447254,-460.0,0.00022191,2]
[367159805,1750679447263,-460.0,0.00022191,2]
[367159806,1750679447272,-460.0,0.00022191,2]
[367159808,1750679447282,-714.15,0.00022191,2]
[367159810,1750679447292,-460.0,0.00022191,2]
[367159813,1750679447301,-582.59050944,0.00022191,2]
[367159815,1750679447311,-460.0,0.00022191,2]
[367159816,1750679447320,-460.0,0.00022191,2]
[367159818,1750679447330,-460.0,0.00022191,2]
[367159820,1750679447339,-460.0,0.00022191,2]
[367159822,1750679447349,-460.0,0.00022191,2]
[367159824,1750679447358,-460.0,0.00022191,2]
[367159826,1750679447367,-838.33,0.00022191,2]
[367159828,1750679447378,-235.56792755,0.00022191,2]
[367159830,1750679447388,-460.0,0.00022191,2]
[367159832,1750679447397,-497.84,0.00022191,2]
[367159834,1750679447406,-460.0,0.00022191,2]
[367159836,1750679447415,-262.79261028,0.00022191,2]
[367159838,1750679447425,-460.0,0.00022191,2]
[367159840,1750679447434,-702.29,0.00022191,2]
[367159842,1750679447443,-754.32,0.00022191,2]
[367159844,1750679447453,-722.89,0.00022191,2]
[367159846,1750679447462,-460.0,0.00022191,2]
[367159848,1750679447471,-177.06746926,0.00022191,2]
[367159850,1750679447481,-460.0,0.00022191,2]
[367159852,1750679447490,-460.0,0.00022191,2]
[367159853,1750679447500,-460.0,0.00022191,2]
[367159855,1750679447509,-408.59038416,0.00022191,2]
[367159857,1750679447518,-460.0,0.00022191,2]
[367159859,1750679447527,-460.0,0.00022191,2]
[367159861,1750679447536,-460.0,0.00022191,2]
[367159863,1750679447545,-460.0,0.00022191,2]
[367159865,1750679447555,-460.0,0.00022191,2]
[367159867,1750679447564,-369.02181348,0.00022191,2]
[367159869,1750679447573,-460.0,0.00022191,2]
[367159871,1750679447582,-463.33132108,0.00022191,2]
[367159873,1750679447591,-228.98355165,0.00022191,2]
[367159875,1750679447600,-1151.1,0.00022191,2]
[367159877,1750679447609,-460.0,0.00022191,2]
[367159879,1750679447618,-460.0,0.00022191,2]
[367159881,1750679447627,-460.0,0.00022191,2]
[367159883,1750679447636,-485.62,0.00022191,2]
[367159885,1750679447646,-460.0,0.00022191,2]
[367159887,1750679447655,-460.0,0.00022191,2]
[367159889,1750679447664,-599.13937829,0.00022191,2]
[367159892,1750679447675,-460.0,0.00022191,2]
[367159894,1750679447684,-341.28527495,0.00022191,2]
[367159896,1750679447693,-460.0,0.00022191,2]
[367159898,1750679447702,-460.0,0.00022191,2]
[367159899,1750679447711,-460.0,0.00022191,2]
[367159901,1750679447721,-460.0,0.00022191,2]
[367159903,1750679447730,-465.51797769,0.00022191,2]
[367159905,1750679447739,-460.0,0.00022191,2]
[367159907,1750679447748,-460.0,0.00022191,2]
[367159909,1750679447757,-460.0,0.00022191,2]
[367159911,1750679447767,-460.0,0.00022191,2]
[367159913,1750679447779,-536.68,0.00022191,2]
[367159915,1750679447788,-460.0,0.00022191,2]
[367159917,1750679447798,-460.0,0.00022191,2]
[367159919,1750679447807,-460.0,0.00022191,2]
[367159921,1750679447816,-483.9,0.00022191,2]
[367159923,1750679447825,-460.0,0.00022191,2]
[367159925,1750679447834,-380.00409345,0.00022191,2]
[367159927,1750679447843,-460.0,0.00022191,2]
[367159929,1750679447852,-402.00486042,0.00022191,2]
[367159931,1750679447861,-184.62410956,0.00022191,2]
[367159933,1750679447870,-502.94,0.00022191,2]
[367159935,1750679447878,-543.64,0.00022191,2]
[367159937,1750679447888,-460.0,0.00022191,2]
[367159939,1750679447897,-460.0,0.00022191,2]
[367159941,1750679447906,-234.88507,0.00022191,7]
[367159943,1750679447915,-460.0,0.00022191,2]
[367159945,1750679447924,-1148.36,0.00022191,2]
[367159947,1750679447933,-460.0,0.00022191,2]
[367159949,1750679447941,-460.0,0.00022191,2]
[367159951,1750679447951,-315.34264663,0.00022191,2]
[367159953,1750679447960,-460.0,0.00022191,2]
[367159955,1750679447968,-1253.57,0.00022191,2]
[367159957,1750679447977,-460.0,0.00022191,2]
[367159959,1750679447987,-460.0,0.00022191,2]
[367159961,1750679447996,-410.50456212,0.00022191,2]
[367159962,1750679448006,-460.0,0.00022191,2]
[367159964,1750679448015,-554.84,0.00022191,2]
[367159966,1750679448025,-572.14767029,0.00022191,2]
[367159968,1750679448034,-802.76,0.00022191,2]
[367159971,1750679448044,-505.45,0.00022191,2]
[367159973,1750679448055,-592.31,0.00022191,2]
[367159974,1750679448065,-886.21,0.00022191,2]
[367159976,1750679448074,-460.0,0.00022191,2]
[367159978,1750679448084,-460.0,0.00022191,2]
[367159980,1750679448093,-432.09181388,0.00022191,2]
[367159982,1750679448103,-460.0,0.00022191,2]
[367159984,1750679448112,-460.0,0.00022191,2]
[367159986,1750679448122,-723.87,0.00022191,2]
[367159988,1750679448131,-2956.7,0.00022191,2]
[367159990,1750679448141,-498.12220023,0.00022191,2]
[367159992,1750679448150,-460.0,0.00022191,2]
[367159994,1750679448160,-460.0,0.00022191,2]
[367159996,1750679448169,-571.57,0.00022191,2]
[367159998,1750679448179,-460.0,0.00022191,2]
[367160000,1750679448189,-1075.14,0.00022191,2]
[367160002,1750679448198,-1134.06,0.00022191,2]
[367160004,1750679448207,-460.0,0.00022191,2]
[367160006,1750679448216,-947.97,0.00022191,2]
[367160008,1750679448226,-460.0,0.00022191,2]
[367160010,1750679448235,-460.0,0.00022191,2]
[367160012,1750679448244,-2356.76,0.00022191,2]
[367160014,1750679448254,-460.0,0.00022191,2]
[367160016,1750679448263,-565.81,0.00022191,2]
[367160018,1750679448272,-460.0,0.00022191,2]
[367160020,1750679448282,-520.03,0.00022191,2]
[367160022,1750679448291,-1244.28,0.00022191,2]
[367160023,1750679448300,-230.02417676,0.00022191,2]
[367160025,1750679448311,-460.0,0.00022191,2]
[367160027,1750679448320,-460.0091802,0.00022191,2]
[367160029,1750679448329,-460.0,0.00022191,2]
[367160031,1750679448339,-897.69,0.00022191,2]
[367160033,1750679448348,-460.0,0.00022191,2]
[367160035,1750679448357,-460.0,0.00022191,2]
[367160037,1750679448367,-460.0,0.00022191,2]
[367160039,1750679448376,-460.0,0.00022191,2]
[367160041,1750679448386,-460.0,0.00022191,2]
[367160043,1750679448395,-460.0,0.00022191,2]
[367160045,1750679448404,-460.0,0.00022191,2]
[367160047,1750679448414,-460.0,0.00022191,2]
[367160049,1750679448423,-460.0,0.00022191,2]
[367160051,1750679448432,-746.0,0.00022191,2]
[367160053,1750679448442,-460.0,0.00022191,2]
[367160055,1750679448451,-460.0,0.00022191,2]
[367160057,1750679448461,-460.0,0.00022191,2]
[367160059,1750679448471,-460.0,0.00022191,2]
[367160061,1750679448480,-460.0,0.00022191,2]
[367160063,1750679448490,-601.52,0.00022191,2]
[367160065,1750679448500,-460.0,0.00022191,2]
[367160067,1750679448510,-460.0,0.00022191,2]
[367160069,1750679448519,-460.0,0.00022191,2]
[367160071,1750679448529,-460.0,0.00022191,2]
[367160073,1750679448540,-460.0,0.00022191,2]
[367160075,1750679448550,-697.34,0.00022191,2]
[367160077,1750679448560,-327.15027301,0.00022191,2]
[367160079,1750679448570,-460.0,0.00022191,2]
[367160081,1750679448580,-460.0,0.00022191,2]
[367160083,1750679448589,-460.0,0.00022191,2]
[367160085,1750679448599,-460.0,0.00022191,2]
[367160087,1750679448609,-460.0,0.00022191,2]
[367160089,1750679448618,-309.37103231,0.00022191,2]
[367160091,1750679448627,-266.99406033,0.00022191,2]
[367160093,1750679448637,-460.0,0.00022191,2]
[367160096,1750679448647,-460.0,0.00022191,2]
[367160098,1750679448656,-460.0,0.00022191,2]
[367160100,1750679448666,-670.03,0.00022191,2]
[367160102,1750679448676,-601.62,0.00022191,2]
[367160104,1750679448686,-460.0,0.00022191,2]
[367160106,1750679448695,-669.54,0.00022191,2]
[367160108,1750679448705,-551.01,0.00022191,2]
[367160110,1750679448714,-980.34,0.00022191,2]
[367160112,1750679448723,-460.0,0.00022191,2]
[367160114,1750679448732,-460.0,0.00022191,2]
[367160116,1750679448742,-460.0,0.00022191,2]
[367160118,1750679448751,-460.0,0.00022191,2]
[367160120,1750679448760,-460.0,0.00022191,2]
[367160122,1750679448771,-1354.79,0.00022191,2]
[367160124,1750679448782,-802.81,0.00022191,2]
[367160125,1750679448792,-771.47,0.00022191,2]
[367160127,1750679448802,-460.0,0.00022191,2]
[367160130,1750679448812,-1000.0,0.00022191,2]
[367160131,1750679448823,-460.0,0.00022191,2]
[367160134,1750679448833,-935.69,0.00022191,2]
[367160136,1750679448843,-460.0,0.00022191,2]
[367160138,1750679448854,-460.0,0.00022191,2]
[367160140,1750679448863,-626.17,0.00022191,2]
[367160142,1750679448873,-460.0,0.00022191,2]
[367160144,1750679448882,-460.0,0.00022191,2]
[367160146,1750679448891,-588.75,0.00022191,2]
[367160147,1750679448901,-460.0,0.00022191,2]
[367160149,1750679448911,-932.67,0.00022191,2]
[367160151,1750679448920,-460.0,0.00022191,2]
[367160154,1750679448930,-460.0,0.00022191,2]
[367160156,1750679448939,-460.0,0.00022191,2]
[367160158,1750679448949,-460.0,0.00022191,2]
[367160160,1750679448958,-1674.24,0.00022191,2]
[367160162,1750679448967,-782.86,0.00022191,2]
[367160163,1750679448977,-460.0,0.00022191,2]
[367160165,1750679448986,-545.69,0.00022191,2]
[367160168,1750679448996,-460.0,0.00022191,2]
[367160170,1750679449005,-832.21,0.00022191,2]
[367160172,1750679449015,-460.0,0.00022191,2]
[367160174,1750679449027,-460.0,0.00022191,2]
[367160176,1750679449036,-460.0,0.00022191,2]
[367160178,1750679449046,-460.0,0.00022191,2]
[367160179,1750679449056,-460.0,0.00022191,2]
[367160182,1750679449065,-460.0,0.00022191,2]
[367160183,1750679449075,-460.0,0.00022191,2]
[367160186,1750679449085,-460.0,0.00022191,2]
[367160188,1750679449094,-460.0,0.00022191,2]
[367160190,1750679449104,-460.0,0.00022191,2]
[367160192,1750679449114,-460.0,0.00022191,2]
[367160194,1750679449123,-460.0,0.00022191,2]
[367160196,1750679449132,-473.03,0.00022191,2]
[367160198,1750679449141,-340.98381788,0.00022191,2]
[367160199,1750679449150,-465.58,0.00022191,2]
[367160201,1750679449160,-460.0,0.00022191,2]
[367160203,1750679449170,-460.0,0.00022191,2]
[367160205,1750679449179,-998.07,0.00022191,2]
[367160207,1750679449189,-460.0,0.00022191,2]
[367160208,1750679449198,-249.04171184,0.00022191,2]
[367160209,1750679449208,-460.0,0.00022191,2]
[367160210,1750679449217,-460.0,0.00022191,2]
[367160211,1750679449226,-872.33,0.00022191,2]
[367160212,1750679449236,-460.0,0.00022191,2]
[367160213,1750679449246,-460.0,0.00022191,2]
[367160214,1750679449255,-151.0,0.00022191,7]
[367160215,1750679449265,-151.0,0.00022191,7]
[367160217,1750679449275,-4989.39,0.00022191,2]
[367160219,1750679449284,-151.0,0.00022191,7]
[367160221,1750679449294,-151.0,0.00022191,7]
[367160223,1750679449305,-563.78,0.00022191,2]
[367160225,1750679449314,-460.0,0.00022191,2]
[367160227,1750679449324,-460.0,0.00022191,2]
[367160229,1750679449333,-1727.9,0.00022191,2]
[367160231,1750679449342,-793.13,0.00022191,2]
[367160233,1750679449353,-460.0,0.00022191,2]
[367160235,1750679449362,-460.0,0.00022191,2]
[367160237,1750679449372,-460.0,0.00022191,2]
[367160239,1750679449381,-549.17,0.00022191,2]
[367160241,1750679449391,-619.84,0.00022191,2]
[367160243,1750679449401,-1232.55,0.00022191,2]
[367160246,1750679449411,-151.0,0.00022191,7]
[367160248,1750679449421,-151.0,0.00022191,7]
[367160250,1750679449430,-151.0,0.00022191,7]
[367160252,1750679449439,-151.0,0.00022191,7]
[367160254,1750679449449,-460.0,0.00022191,2]
[367160256,1750679449458,-598.17,0.00022191,2]
[367160257,1750679449468,-460.0,0.00022191,2]
[367160258,1750679449477,-633.72,0.00022191,2]
[367160260,1750679449487,-474.55,0.00022191,2]
[367160262,1750679449497,-460.0,0.00022191,2]
[367160264,1750679449507,-460.0,0.00022191,2]
[367160267,1750679449526,-460.0,0.00022191,2]
[367160269,1750679449536,-460.0,0.00022191,2]
[367160271,1750679449547,-481.36587145,0.00022191,2]
[367160273,1750679449557,-647.0,0.00022191,2]
[367160275,1750679449567,-630.5,0.00022191,2]
[367160277,1750679449577,-936.71,0.00022191,2]
[367160279,1750679449586,-460.0,0.00022191,2]
[367160282,1750679449596,-460.0,0.00022191,2]
[367160284,1750679449607,-861.13,0.00022191,2]
[367160286,1750679449616,-460.0,0.00022191,2]
[367160288,1750679449626,-816.31,0.00022191,2]
[367160290,1750679449636,-460.0,0.00022191,2]
[367160292,1750679449647,-460.0,0.00022191,2]
[367160294,1750679449657,-460.0,0.00022191,2]
[367160296,1750679449667,-460.0,0.00022191,2]
[367160298,1750679449676,-590.95,0.00022191,2]
[367160300,1750679449686,-460.0,0.00022191,2]
[367160302,1750679449697,-500.0,0.00022191,2]
[367160304,1750679449707,-760.47,0.00022191,2]
[367160307,1750679449718,-1873.31,0.00022191,2]
[367160309,1750679449730,-460.0,0.00022191,2]
[367160311,1750679449739,-460.0,0.00022191,2]
[367160313,1750679449750,-6889.06,0.00022191,2]
[367160315,1750679449760,-1333.12,0.00022191,2]
[367160317,1750679449771,-460.0,0.00022191,2]
[367160319,1750679449783,-460.0,0.00022191,2]
[367160321,1750679449795,-460.0,0.00022191,2]
[367160323,1750679449806,-460.0,0.00022191,2]
[367160325,1750679449816,-2503.55,0.00022191,2]
[367160327,1750679449826,-460.0,0.00022191,2]
[367160329,1750679449836,-460.0,0.00022191,2]
[367160332,1750679449846,-1060.68,0.00022191,2]
[367160334,1750679449856,-687.85,0.00022191,2]
[367160336,1750679449867,-460.0,0.00022191,2]
[367160338,1750679449877,-827.12,0.00022191,2]